[Event "FIDE Grand Swiss 2023"]
[Site "Villa Marina, Douglas, Isle of Man"]
[Date "2023.10.28"]
[Round "4.55"]
[White "Sanal, Vahap"]
[Black "Gurel, Ediz"]
[Result "1/2-1/2"]
[WhiteElo "2603"]
[BlackElo "2514"]
[EventDate "2023.10.25"]
[ECO "D43"]
[PlyCount "111"]
[BlackFideId "44507356"]
[TimeControl "40/100 + 20/50 + 15 + 30s/move"]
[WhiteFideId "6300545"]

1.d4 {[%clk 01:40:55] [%emt 00:00:04]} 1...d5 {[%clk 01:40:43] [%emt 00:00:18]} 
2.c4 {[%clk 01:41:09] [%emt 00:00:15]} 2...e6 {[%clk 01:40:57] [%emt 00:00:17]} 
3.Nf3 {[%clk 01:41:23] [%emt 00:00:16]} 3...Nf6 {[%clk 01:40:39] [%emt
00:00:48]} 4.Nc3 {[%clk 01:41:43] [%emt 00:00:10]} 4...c6 {[%clk 01:40:48] [%emt
00:00:21]} 5.g3 {[%clk 01:41:59] [%emt 00:00:13]} 5...Be7 {[%clk 01:39:22] [%emt
00:01:57]} 6.Bg2 {[%clk 01:42:06] [%emt 00:00:23]} 6...O-O {[%clk 01:39:18]
[%emt 00:00:33]} 7.O-O {[%clk 01:41:57] [%emt 00:00:38]} 7...a5 {[%clk 01:39:14]
[%emt 00:00:36]} 8.b3 {[%clk 01:36:10] [%emt 00:06:17]} 8...b6 {[%clk 01:34:33]
[%emt 00:05:11]} 9.Qd3 {[%clk 01:36:08] [%emt 00:00:31]} 9...Ba6 {[%clk
01:31:22] [%emt 00:03:42]} 10.a3 {[%clk 01:36:12] [%emt 00:00:26]} 10...b5 
{[%clk 01:23:36] [%emt 00:08:16]} 11.Nd2 {[%clk 01:19:28] [%emt 00:17:14]} 
11...bxc4 {[%clk 01:16:18] [%emt 00:07:48]} 12.bxc4 {[%clk 01:17:03] [%emt
00:02:55]} 12...c5 {[%clk 01:09:14] [%emt 00:07:34]} 13.dxc5 {[%clk 01:00:41]
[%emt 00:16:51]} 13...Nbd7 {[%clk 01:07:54] [%emt 00:01:51]} 14.Na4 {[%clk
00:54:05] [%emt 00:07:06]} 14...Nxc5 {[%clk 01:04:06] [%emt 00:04:18]} 15.Nxc5 
{[%clk 00:54:27] [%emt 00:00:07]} 15...Bxc5 {[%clk 01:04:32] [%emt 00:00:04]} 
16.Bb2 {[%clk 00:49:45] [%emt 00:05:12]} 16...dxc4 {[%clk 01:00:18] [%emt
00:04:45]} 17.Nxc4 {[%clk 00:49:49] [%emt 00:00:25]} 17...Qxd3 {[%clk 00:55:41]
[%emt 00:05:08]} 18.exd3 {[%clk 00:49:56] [%emt 00:00:22]} 18...Rad8 {[%clk
00:55:32] [%emt 00:00:40]} 19.Ne5 {[%clk 00:21:33] [%emt 00:28:53]} 19...Bxd3 
{[%clk 00:45:11] [%emt 00:10:51]} 20.Rfc1 {[%clk 00:21:55] [%emt 00:00:07]} 
20...Bb6 {[%clk 00:45:33] [%emt 00:00:09]} 21.Rc6 {[%clk 00:21:30] [%emt
00:00:54]} 21...Ba7 {[%clk 00:45:57] [%emt 00:00:06]} 22.Rc7 {[%clk 00:21:27]
[%emt 00:00:33]} 22...Bb8 {[%clk 00:44:37] [%emt 00:01:52]} 23.Rc5 {[%clk
00:21:28] [%emt 00:00:26]} 23...Be4 {[%clk 00:32:23] [%emt 00:12:46]} 24.Rxa5 
{[%clk 00:18:53] [%emt 00:03:04]} 24...Bxg2 {[%clk 00:31:44] [%emt 00:01:10]} 
25.Kxg2 {[%clk 00:19:15] [%emt 00:00:08]} 25...Rd2 {[%clk 00:31:28] [%emt
00:00:47]} 26.Nc4 {[%clk 00:18:42] [%emt 00:01:01]} 26...Rc2 {[%clk 00:31:33]
[%emt 00:00:25]} 27.Rc1 {[%clk 00:13:58] [%emt 00:05:15]} 27...Rxc1 {[%clk
00:31:59] [%emt 00:00:04]} 28.Bxc1 {[%clk 00:14:25] [%emt 00:00:02]} 28...Rc8 
{[%clk 00:31:30] [%emt 00:00:59]} 29.Ra4 {[%clk 00:14:11] [%emt 00:00:43]} 
29...h5 {[%clk 00:26:11] [%emt 00:05:49]} 30.Be3 {[%clk 00:13:43] [%emt
00:00:58]} 30...Nd5 {[%clk 00:26:19] [%emt 00:00:23]} 31.Bd4 {[%clk 00:13:56]
[%emt 00:00:17]} 31...f6 {[%clk 00:22:31] [%emt 00:04:19]} 32.Nb6 {[%clk
00:14:00] [%emt 00:00:25]} 32...Nxb6 {[%clk 00:22:47] [%emt 00:00:14]} 33.Bxb6 
{[%clk 00:14:28] [%emt 00:00:02]} 33...Bd6 {[%clk 00:23:11] [%emt 00:00:06]} 
34.Ra5 {[%clk 00:11:46] [%emt 00:03:11]} 34...Kf7 {[%clk 00:19:30] [%emt
00:04:12]} 35.a4 {[%clk 00:12:10] [%emt 00:00:05]} 35...Kg6 {[%clk 00:19:21]
[%emt 00:00:40]} 36.Be3 {[%clk 00:12:08] [%emt 00:00:32]} 36...e5 {[%clk
00:16:30] [%emt 00:03:21]} 37.Rd5 {[%clk 00:11:12] [%emt 00:01:25]} 37...Rc6 
{[%clk 00:15:14] [%emt 00:01:47]} 38.a5 {[%clk 00:11:16] [%emt 00:00:26]} 
38...Kf5 {[%clk 00:12:16] [%emt 00:03:27]} 39.Bb6 {[%clk 00:04:17] [%emt
00:07:30]} 39...Ke6 {[%clk 00:11:12] [%emt 00:01:34]} 40.Rd2 {[%clk 00:04:20]
[%emt 00:00:25]} 40...Kd7 {[%clk 00:04:00] [%emt 00:07:44]} 41.Kf3 {[%clk
00:44:45] [%emt 00:10:04]} 41...Rc3+ {[%clk 00:49:34] [%emt 00:04:57]} 42.Ke2 
{[%clk 00:44:13] [%emt 00:01:01]} 42...Kc6 {[%clk 00:49:29] [%emt 00:00:36]} 
43.Ra2 {[%clk 00:36:02] [%emt 00:08:40]} 43...Kb7 {[%clk 00:42:06] [%emt
00:07:53]} 44.a6+ {[%clk 00:33:26] [%emt 00:03:07]} 44...Ka8 {[%clk 00:42:20]
[%emt 00:00:16]} 45.Be3 {[%clk 00:30:03] [%emt 00:03:51]} 45...f5 {[%clk
00:37:04] [%emt 00:05:47]} 46.Ra4 {[%clk 00:23:20] [%emt 00:07:13]} 46...g6 
{[%clk 00:23:56] [%emt 00:13:38]} 47.h4 {[%clk 00:20:19] [%emt 00:03:31]} 
47...Bc5 {[%clk 00:20:50] [%emt 00:03:37]} 48.Kd2 {[%clk 00:17:31] [%emt
00:03:18]} 48...Bxe3+ {[%clk 00:20:59] [%emt 00:00:21]} 49.Kxc3 {[%clk 00:17:23]
[%emt 00:00:38]} 49...Bxf2 {[%clk 00:21:25] [%emt 00:00:03]} 50.Kc4 {[%clk
00:16:34] [%emt 00:01:19]} 50...Bxg3 {[%clk 00:20:46] [%emt 00:01:10]} 51.Kb5 
{[%clk 00:15:37] [%emt 00:01:27]} 51...e4 {[%clk 00:20:03] [%emt 00:01:13]} 
52.Ra2 {[%clk 00:08:04] [%emt 00:08:02]} 52...e3 {[%clk 00:11:56] [%emt
00:08:37]} 53.a7 {[%clk 00:06:47] [%emt 00:01:48]} 53...e2 {[%clk 00:11:56]
[%emt 00:00:30]} 54.Rxe2 {[%clk 00:07:05] [%emt 00:00:11]} 54...Kxa7 {[%clk
00:12:23] [%emt 00:00:04]} 55.Kc6 {[%clk 00:04:23] [%emt 00:03:11]} 55...Bxh4 
{[%clk 00:12:26] [%emt 00:00:27]} 56.Kd5 {[%clk 00:02:52] [%emt 00:02:02]} 1/2-1/2

[Event "FIDE Grand Swiss 2023"]
[Site "Villa Marina, Douglas, Isle of Man"]
[Date "2023.10.28"]
[Round "4.56"]
[White "Wagner, Dennis"]
[Black "Wu, Li"]
[Result "1-0"]
[WhiteElo "2589"]
[BlackElo "2303"]
[EventDate "2023.10.25"]
[ECO "B36"]
[PlyCount "125"]
[BlackFideId "411086"]
[TimeControl "40/100 + 20/50 + 15 + 30s/move"]
[WhiteFideId "24650684"]

1.c4 {[%clk 01:40:56] [%emt 00:00:04]} 1...c5 {[%clk 01:40:36] [%emt 00:00:24]} 
2.Nf3 {[%clk 01:41:18] [%emt 00:00:08]} 2...Nc6 {[%clk 01:40:47] [%emt
00:00:19]} 3.d4 {[%clk 01:39:16] [%emt 00:02:32]} 3...cxd4 {[%clk 01:41:09]
[%emt 00:00:08]} 4.Nxd4 {[%clk 01:39:41] [%emt 00:00:05]} 4...g6 {[%clk
01:39:38] [%emt 00:02:01]} 5.e4 {[%clk 01:39:28] [%emt 00:00:42]} 5...Nf6 
{[%clk 01:40:01] [%emt 00:00:08]} 6.Nc3 {[%clk 01:39:46] [%emt 00:00:11]} 
6...d6 {[%clk 01:40:19] [%emt 00:00:13]} 7.Be2 {[%clk 01:39:28] [%emt 00:00:47]} 
7...Nxd4 {[%clk 01:40:42] [%emt 00:00:08]} 8.Qxd4 {[%clk 01:39:53] [%emt
00:00:05]} 8...Bg7 {[%clk 01:41:08] [%emt 00:00:04]} 9.Be3 {[%clk 01:39:02]
[%emt 00:01:20]} 9...O-O {[%clk 01:41:29] [%emt 00:00:10]} 10.Qd2 {[%clk
01:39:27] [%emt 00:00:04]} 10...a6 {[%clk 01:38:28] [%emt 00:03:32]} 11.f3 
{[%clk 01:37:00] [%emt 00:02:56]} 11...Be6 {[%clk 01:31:28] [%emt 00:07:31]} 
12.Rc1 {[%clk 01:30:48] [%emt 00:06:41]} 12...Qa5 {[%clk 01:21:31] [%emt
00:10:28]} 13.b3 {[%clk 01:30:56] [%emt 00:00:22]} 13...Rfc8 {[%clk 01:21:36]
[%emt 00:00:24]} 14.Na4 {[%clk 01:30:08] [%emt 00:01:18]} 14...Qxd2+ {[%clk
01:21:59] [%emt 00:00:07]} 15.Kxd2 {[%clk 01:30:31] [%emt 00:00:07]} 15...Nd7 
{[%clk 01:22:24] [%emt 00:00:06]} 16.g4 {[%clk 01:30:39] [%emt 00:00:21]} 
16...Rcb8 {[%clk 01:16:57] [%emt 00:05:57]} 17.Nc3 {[%clk 01:22:20] [%emt
00:08:49]} 17...Rc8 {[%clk 01:15:58] [%emt 00:01:29]} 18.h4 {[%clk 01:00:45]
[%emt 00:22:05]} 18...b5 {[%clk 01:12:16] [%emt 00:04:13]} 19.Nd5 {[%clk
01:01:00] [%emt 00:00:14]} 19...Bxd5 {[%clk 01:11:43] [%emt 00:01:04]} 20.cxd5 
{[%clk 01:00:20] [%emt 00:01:10]} 20...b4 {[%clk 01:02:03] [%emt 00:10:10]} 
21.Rxc8+ {[%clk 00:53:29] [%emt 00:07:21]} 21...Rxc8 {[%clk 01:02:01] [%emt
00:00:32]} 22.g5 {[%clk 00:53:50] [%emt 00:00:09]} 22...Bc3+ {[%clk 01:01:17]
[%emt 00:01:14]} 23.Kd1 {[%clk 00:54:15] [%emt 00:00:05]} 23...Nc5 {[%clk
00:59:07] [%emt 00:02:40]} 24.h5 {[%clk 00:52:58] [%emt 00:01:46]} 24...Kg7 
{[%clk 00:47:47] [%emt 00:11:50]} 25.Bc4 {[%clk 00:52:04] [%emt 00:01:24]} 
25...Rc7 {[%clk 00:37:10] [%emt 00:11:08]} 26.Ke2 {[%clk 00:52:28] [%emt
00:00:05]} 26...a5 {[%clk 00:37:21] [%emt 00:00:20]} 27.Bb5 {[%clk 00:52:14]
[%emt 00:00:43]} 27...e5 {[%clk 00:37:12] [%emt 00:00:39]} 28.Bc6 {[%clk
00:17:02] [%emt 00:35:42]} 28...Bd4 {[%clk 00:25:52] [%emt 00:11:51]} 29.h6+ 
{[%clk 00:16:55] [%emt 00:00:36]} 29...Kf8 {[%clk 00:25:49] [%emt 00:00:33]} 
30.Bxd4 {[%clk 00:17:20] [%emt 00:00:06]} 30...exd4 {[%clk 00:26:17] [%emt
00:00:03]} 31.Rd1 {[%clk 00:14:39] [%emt 00:03:10]} 31...d3+ {[%clk 00:21:01]
[%emt 00:05:46]} 32.Ke3 {[%clk 00:15:04] [%emt 00:00:04]} 32...Re7 {[%clk
00:19:48] [%emt 00:01:43]} 33.Bb5 {[%clk 00:12:51] [%emt 00:02:43]} 33...Re5 
{[%clk 00:19:23] [%emt 00:00:55]} 34.Rg1 {[%clk 00:11:10] [%emt 00:02:11]} 
34...f6 {[%clk 00:18:30] [%emt 00:01:24]} 35.gxf6 {[%clk 00:08:05] [%emt
00:03:35]} 35...Kf7 {[%clk 00:17:48] [%emt 00:01:12]} 36.Bxd3 {[%clk 00:07:55]
[%emt 00:00:40]} 36...Rh5 {[%clk 00:13:08] [%emt 00:05:10]} 37.Bc4 {[%clk
00:04:32] [%emt 00:03:53]} 37...Kxf6 {[%clk 00:12:21] [%emt 00:01:18]} 38.a3 
{[%clk 00:03:42] [%emt 00:01:19]} 38...Rxh6 {[%clk 00:10:46] [%emt 00:02:05]} 
39.axb4 {[%clk 00:04:05] [%emt 00:00:07]} 39...axb4 {[%clk 00:11:14] [%emt
00:00:01]} 40.Ra1 {[%clk 00:04:15] [%emt 00:00:20]} 40...g5 {[%clk 00:10:27]
[%emt 00:01:17]} 41.Ra8 {[%clk 00:01:49] [%emt 00:02:56]} 41...Rh1 {[%clk
00:07:08] [%emt 00:03:50]} 42.Rf8+ {[%clk 00:48:20] [%emt 00:03:58]} 42...Ke7 
{[%clk 00:56:33] [%emt 00:01:05]} 43.Rg8 {[%clk 00:38:40] [%emt 00:10:11]} 
43...h6 {[%clk 00:52:57] [%emt 00:04:06]} 44.Rg6 {[%clk 00:33:33] [%emt
00:05:36]} 44...Rb1 {[%clk 00:26:24] [%emt 00:27:03]} 45.Rxh6 {[%clk 00:30:24]
[%emt 00:03:40]} 45...g4 {[%clk 00:25:48] [%emt 00:01:07]} 46.fxg4 {[%clk
00:28:30] [%emt 00:02:24]} 46...Re1+ {[%clk 00:24:30] [%emt 00:01:47]} 47.Kf4 
{[%clk 00:19:42] [%emt 00:09:18]} 47...Rxe4+ {[%clk 00:24:50] [%emt 00:00:11]} 
48.Kf5 {[%clk 00:20:04] [%emt 00:00:07]} 48...Re5+ {[%clk 00:20:41] [%emt
00:04:40]} 49.Kg6 {[%clk 00:20:23] [%emt 00:00:10]} 49...Ne4 {[%clk 00:20:48]
[%emt 00:00:24]} 50.Rh5 {[%clk 00:12:47] [%emt 00:08:06]} 50...Nd2 {[%clk
00:17:52] [%emt 00:03:25]} 51.Bb5 {[%clk 00:11:29] [%emt 00:01:48]} 51...Rxh5 
{[%clk 00:12:14] [%emt 00:06:08]} 52.gxh5 {[%clk 00:11:53] [%emt 00:00:07]} 
52...Kf8 {[%clk 00:12:41] [%emt 00:00:03]} 53.Ba4 {[%clk 00:09:41] [%emt
00:02:41]} 53...Ne4 {[%clk 00:12:54] [%emt 00:00:17]} 54.Bd7 {[%clk 00:07:51]
[%emt 00:02:19]} 54...Kg8 {[%clk 00:11:38] [%emt 00:01:46]} 55.Bf5 {[%clk
00:07:01] [%emt 00:01:20]} 55...Nc3 {[%clk 00:05:36] [%emt 00:06:32]} 56.Be6+ 
{[%clk 00:06:52] [%emt 00:00:39]} 56...Kh8 {[%clk 00:06:04] [%emt 00:00:02]} 
57.Kf7 {[%clk 00:04:50] [%emt 00:02:32]} 57...Ne2 {[%clk 00:01:34] [%emt
00:05:00]} 58.Bg4 {[%clk 00:04:37] [%emt 00:00:42]} 58...Nd4 {[%clk 00:01:45]
[%emt 00:00:20]} 59.Bd1 {[%clk 00:04:43] [%emt 00:00:24]} 59...Nb5 {[%clk
00:01:38] [%emt 00:00:38]} 60.Ke7 {[%clk 00:02:45] [%emt 00:02:27]} 60...Kg7 
{[%clk 00:01:59] [%emt 00:00:10]} 61.Kd7 {[%clk 00:02:04] [%emt 00:01:11]} 
61...Nc3 {[%clk 00:01:41] [%emt 00:00:48]} 62.Kxd6 {[%clk 00:09:36] [%emt
00:07:57]} 62...Nxd1 {[%clk 00:17:07] [%emt 00:00:05]} 63.Ke6 {[%clk 00:09:12]} 1-0

[Event "FIDE Grand Swiss 2023"]
[Site "Villa Marina, Douglas, Isle of Man"]
[Date "2023.10.28"]
[Round "4.57"]
[White "Kolbus, Dietmar"]
[Black "Akobian, Varuzhan"]
[Result "0-1"]
[WhiteElo "2225"]
[BlackElo "2582"]
[EventDate "2023.10.25"]
[ECO "E10"]
[PlyCount "64"]
[BlackFideId "13300580"]
[TimeControl "40/100 + 20/50 + 15 + 30s/move"]
[WhiteFideId "4610628"]

1.d4 {[%clk 01:40:56] [%emt 00:00:04]} 1...Nf6 {[%clk 01:40:07] [%emt 00:00:53]} 
2.c4 {[%clk 01:41:16] [%emt 00:00:09]} 2...e6 {[%clk 01:39:51] [%emt 00:00:47]} 
3.Nf3 {[%clk 01:41:36] [%emt 00:00:09]} 3...d5 {[%clk 01:38:15] [%emt 00:02:06]} 
4.e3 {[%clk 01:37:40] [%emt 00:04:26]} 4...b6 {[%clk 01:33:22] [%emt 00:05:23]} 
5.Nc3 {[%clk 01:37:57] [%emt 00:00:13]} 5...Bb7 {[%clk 01:33:05] [%emt
00:00:47]} 6.Be2 {[%clk 01:32:08] [%emt 00:06:18]} 6...Nbd7 {[%clk 01:31:47]
[%emt 00:01:49]} 7.O-O {[%clk 01:32:25] [%emt 00:00:12]} 7...Bd6 {[%clk
01:30:37] [%emt 00:01:40]} 8.b3 {[%clk 01:26:09] [%emt 00:06:47]} 8...a6 {[%clk
01:25:02] [%emt 00:06:05]} 9.Bb2 {[%clk 01:26:19] [%emt 00:00:20]} 9...O-O 
{[%clk 01:25:24] [%emt 00:00:08]} 10.Rc1 {[%clk 01:19:32] [%emt 00:07:17]} 
10...Qe7 {[%clk 01:21:36] [%emt 00:04:16]} 11.Nd2 {[%clk 01:04:21] [%emt
00:15:43]} 11...c5 {[%clk 01:10:21] [%emt 00:11:42]} 12.Bf3 {[%clk 01:02:25]
[%emt 00:02:29]} 12...cxd4 {[%clk 00:58:47] [%emt 00:12:04]} 13.exd4 {[%clk
01:02:44] [%emt 00:00:11]} 13...Bb4 {[%clk 00:50:24] [%emt 00:08:53]} 14.Ndb1 
{[%clk 00:58:38] [%emt 00:04:37]} 14...Ne4 {[%clk 00:46:42] [%emt 00:04:11]} 
15.cxd5 {[%clk 00:41:13] [%emt 00:17:55]} 15...exd5 {[%clk 00:46:05] [%emt
00:01:07]} 16.g3 {[%clk 00:41:20] [%emt 00:00:23]} 16...f5 {[%clk 00:44:55]
[%emt 00:01:40]} 17.Ne2 {[%clk 00:36:14] [%emt 00:05:35]} 17...Bd6 {[%clk
00:44:20] [%emt 00:01:06]} 18.Bg2 {[%clk 00:35:02] [%emt 00:01:42]} 18...f4 
{[%clk 00:41:44] [%emt 00:03:07]} 19.Qd3 {[%clk 00:34:32] [%emt 00:01:00]} 
19...g5 {[%clk 00:26:32] [%emt 00:15:39]} 20.f3 {[%clk 00:31:16] [%emt
00:03:48]} 20...Nef6 {[%clk 00:25:55] [%emt 00:01:07]} 21.gxf4 {[%clk 00:30:20]
[%emt 00:01:26]} 21...gxf4 {[%clk 00:26:09] [%emt 00:00:16]} 22.Rce1 {[%clk
00:28:34] [%emt 00:02:17]} 22...Rae8 {[%clk 00:24:10] [%emt 00:02:28]} 23.Bc1 
{[%clk 00:28:10] [%emt 00:00:54]} 23...Nh5 {[%clk 00:20:21] [%emt 00:04:19]} 
24.Bd2 {[%clk 00:26:26] [%emt 00:02:14]} 24...Qh4 {[%clk 00:20:21] [%emt
00:00:31]} 25.Nec3 {[%clk 00:25:28] [%emt 00:01:28]} 25...Re3 {[%clk 00:18:49]
[%emt 00:02:01]} 26.Qc2 {[%clk 00:25:02] [%emt 00:00:56]} 26...Kh8 {[%clk
00:17:26] [%emt 00:01:54]} 27.Rf2 {[%clk 00:22:46] [%emt 00:02:44]} 27...Ndf6 
{[%clk 00:14:11] [%emt 00:03:46]} 28.Nd1 {[%clk 00:16:46] [%emt 00:06:29]} 
28...Ng4 {[%clk 00:11:17] [%emt 00:03:24]} 29.fxg4 {[%clk 00:15:33] [%emt
00:01:43]} 29...f3 {[%clk 00:11:37] [%emt 00:00:10]} 30.h3 {[%clk 00:15:10]
[%emt 00:00:53]} 30...Qg3 {[%clk 00:11:28] [%emt 00:00:40]} 31.Rxe3 {[%clk
00:11:05] [%emt 00:04:34]} 31...Qh2+ {[%clk 00:11:39] [%emt 00:00:19]} 32.Kf1 
{[%clk 00:11:23] [%emt 00:00:12]} 32...fxg2+ {[%clk 00:11:42] [%emt 00:00:27]} 0-1

[Event "FIDE Grand Swiss 2023"]
[Site "Villa Marina, Douglas, Isle of Man"]
[Date "2023.10.29"]
[Round "5.1"]
[White "Esipenko, Andrey"]
[Black "Caruana, Fabiano"]
[Result "1/2-1/2"]
[WhiteElo "2683"]
[BlackElo "2786"]
[EventDate "2023.10.25"]
[ECO "E10"]
[PlyCount "86"]
[BlackFideId "2020009"]
[TimeControl "40/100 + 20/50 + 15 + 30s/move"]
[WhiteFideId "24175439"]
[ePGN "0.1;DGT LiveChess/2.2.5"]

1.d4 {[%clk 01:40:53] [%emt 00:00:05]} 1...Nf6 {[%clk 01:40:54] [%emt 00:00:07]} 
2.c4 {[%clk 01:41:07] [%emt 00:00:15]} 2...e6 {[%clk 01:41:18] [%emt 00:00:06]} 
3.Nf3 {[%clk 01:41:20] [%emt 00:00:17]} 3...a6 {[%clk 01:41:40] [%emt 00:00:09]} 
4.Nc3 {[%clk 01:36:01] [%emt 00:05:49]} 4...d5 {[%clk 01:41:41] [%emt 00:00:30]} 
5.cxd5 {[%clk 01:36:01] [%emt 00:00:30]} 5...exd5 {[%clk 01:42:05] [%emt
00:00:07]} 6.Bg5 {[%clk 01:36:14] [%emt 00:00:15]} 6...Be6 {[%clk 01:42:28]
[%emt 00:00:07]} 7.e3 {[%clk 01:36:21] [%emt 00:00:23]} 7...Nbd7 {[%clk
01:42:09] [%emt 00:00:50]} 8.Bd3 {[%clk 01:36:29] [%emt 00:00:21]} 8...Bd6 
{[%clk 01:41:33] [%emt 00:01:07]} 9.O-O {[%clk 01:32:35] [%emt 00:04:24]} 
9...c6 {[%clk 01:40:47] [%emt 00:01:16]} 10.Kh1 {[%clk 01:19:36] [%emt
00:13:28]} 10...O-O {[%clk 01:35:42] [%emt 00:05:36]} 11.Nd2 {[%clk 01:15:05]
[%emt 00:05:00]} 11...h6 {[%clk 01:16:07] [%emt 00:20:05]} 12.Bh4 {[%clk
01:13:05] [%emt 00:02:29]} 12...g5 {[%clk 01:14:21] [%emt 00:02:17]} 13.Bg3 
{[%clk 01:13:14] [%emt 00:00:21]} 13...Bxg3 {[%clk 01:14:46] [%emt 00:00:05]} 
14.fxg3 {[%clk 01:09:15] [%emt 00:04:29]} 14...Kg7 {[%clk 01:13:54] [%emt
00:01:22]} 15.e4 {[%clk 00:44:21] [%emt 00:25:24]} 15...Qb6 {[%clk 01:07:57]
[%emt 00:06:27]} 16.exd5 {[%clk 00:42:45] [%emt 00:02:06]} 16...cxd5 {[%clk
01:02:37] [%emt 00:05:50]} 17.Nb3 {[%clk 00:42:51] [%emt 00:00:24]} 17...Qd6 
{[%clk 01:02:32] [%emt 00:00:35]} 18.Qf3 {[%clk 00:41:27] [%emt 00:01:53]} 
18...b6 {[%clk 00:52:18] [%emt 00:10:45]} 19.Rae1 {[%clk 00:39:55] [%emt
00:02:02]} 19...Bg4 {[%clk 00:51:43] [%emt 00:01:05]} 20.Qf2 {[%clk 00:38:30]
[%emt 00:01:54]} 20...Bh5 {[%clk 00:51:39] [%emt 00:00:35]} 21.Na1 {[%clk
00:32:28] [%emt 00:06:32]} 21...Bg6 {[%clk 00:47:33] [%emt 00:04:36]} 22.Bf5 
{[%clk 00:32:43] [%emt 00:00:15]} 22...b5 {[%clk 00:41:51] [%emt 00:06:13]} 
23.a3 {[%clk 00:32:28] [%emt 00:00:45]} 23...Rae8 {[%clk 00:36:13] [%emt
00:06:09]} 24.Nc2 {[%clk 00:31:54] [%emt 00:01:02]} 24...Rxe1 {[%clk 00:26:41]
[%emt 00:10:03]} 25.Rxe1 {[%clk 00:31:50] [%emt 00:00:33]} 25...Re8 {[%clk
00:27:06] [%emt 00:00:06]} 26.Rxe8 {[%clk 00:15:59] [%emt 00:16:21]} 26...Nxe8 
{[%clk 00:27:32] [%emt 00:00:04]} 27.Bxg6 {[%clk 00:16:08] [%emt 00:00:20]} 
27...fxg6 {[%clk 00:27:46] [%emt 00:00:17]} 28.Nb4 {[%clk 00:16:17] [%emt
00:00:20]} 28...Nc7 {[%clk 00:20:57] [%emt 00:07:20]} 29.Nd3 {[%clk 00:13:30]
[%emt 00:03:16]} 29...a5 {[%clk 00:20:42] [%emt 00:00:45]} 30.Qe3 {[%clk
00:11:55] [%emt 00:02:04]} 30...Nb6 {[%clk 00:18:05] [%emt 00:03:07]} 31.Nc5 
{[%clk 00:06:03] [%emt 00:06:22]} 31...Nc4 {[%clk 00:18:30] [%emt 00:00:06]} 
32.Qe2 {[%clk 00:06:25] [%emt 00:00:08]} 32...a4 {[%clk 00:17:39] [%emt
00:01:21]} 33.h3 {[%clk 00:02:40] [%emt 00:04:14]} 33...h5 {[%clk 00:15:44]
[%emt 00:02:25]} 34.g4 {[%clk 00:02:57] [%emt 00:00:14]} 34...h4 {[%clk
00:15:23] [%emt 00:00:51]} 35.Nd3 {[%clk 00:02:00] [%emt 00:01:26]} 35...Qf6 
{[%clk 00:12:36] [%emt 00:03:17]} 36.Nb4 {[%clk 00:01:11] [%emt 00:01:19]} 
36...Kh6 {[%clk 00:12:26] [%emt 00:00:41]} 37.Nbxd5 {[%clk 00:00:50] [%emt
00:00:51]} 37...Nxd5 {[%clk 00:12:52] [%emt 00:00:03]} 38.Nxd5 {[%clk 00:01:17]
[%emt 00:00:04]} 38...Qxd4 {[%clk 00:13:18] [%emt 00:00:03]} 39.Qe8 {[%clk
00:00:37] [%emt 00:01:10]} 39...Qxb2 {[%clk 00:13:09] [%emt 00:00:40]} 40.Ne7 
{[%clk 00:00:32] [%emt 00:00:35]} 40...Qa1+ {[%clk 00:11:07] [%emt 00:02:31]} 
41.Kh2 {[%clk 00:00:59] [%emt 00:00:03]} 41...Qe5+ {[%clk 00:11:34] [%emt
00:00:03]} 42.Kh1 {[%clk 00:00:46] [%emt 00:00:42]} 42...Qe1+ {[%clk 00:11:38]
[%emt 00:00:27]} 43.Kh2 {[%clk 00:01:07] [%emt 00:00:10]} 43...Qe5+ {[%clk
00:12:04] [%emt 00:00:04]} 1/2-1/2